[Event "FIDE Zonal 2.5 Open 2019"]
[Site "Montevideo"]
[Date "2019.04.18"]
[Round "8.13"]
[White "Dotta, Gian Franco"]
[Black "Rodriguez, Santiago"]
[Result "1/2-1/2"]
[ECO "B01"]
[WhiteElo "1959"]
[BlackElo "2257"]
[Annotator "NA"]
[PlyCount "96"]
[EventDate "2019.04.13"]
[EventType "swiss"]
[EventCountry "URU"]
[SourceTitle "playchess.com"]
[Source "ChessBase"]
[SourceQuality "1"]
[TimeControl "40/5400+30:1800+30"]

1. e4 {[%emt 0:14:48]} d5 {[%emt 0:00:00]} 2. exd5 {[%emt 0:00:32]} Nf6 {[%emt 0:00:00]} 3. d4 {[%emt 0:00:21]} Bg4 {[%emt 0:00:00]} 4. Be2 {[%emt 0:02:36]} Bxe2 {[%emt 0:00:00]} 5. Qxe2 {[%emt 0:00:35]} Qxd5 {[%emt 0:00:07]} 6. Nf3 {[%emt 0:01:27]} e6 {[%emt 0:00:05]} 7. O-O {[%emt 0:01:46]} Nc6 {[%emt 0:00:07]} 8. Nc3 {[%emt 0:03:06]} Qh5 {[%emt 0:00:36] B01: Scandinavian Defence} 9. Ne4 {[%emt 0:02:16]} O-O-O {[%emt 0:01:38]} 10. c3 {[%emt 0:01:11]} (10. Ng3 Qd5 11. c4 Qa5 12. Bd2 Qa6 13. Bc3 h5 14. b3 Be7 15. h4 Ng4 16. Rfd1 {1-0 (30) Chigaev,M (2577)-Klepikov,N (2245) St Petersburg 2018}) 10... Nxe4 {[%emt 0:07:54]} 11. Qxe4 {[%emt 0:00:10]} Bd6 {[%emt 0:00:24]} 12. Re1 $146 {[%emt 0:06:41]} ({Predecessor:} 12. Bf4 Bxf4 13. Qxf4 h6 14. Rfe1 Rhe8 15. Ne5 Nxe5 16. Rxe5 Qg6 {½-½ (48) Kovalevskaya,S (2015)-Seymour,J (2029) Millfield 2003}) 12... h6 {[%emt 0:05:06]} 13. Bf4 {[%emt 0:01:53]} Qg4 {[%emt 0:07:31]} 14. Ne5 {[%emt 0:02:21]} Bxe5 {[%emt 0:00:38]} 15. Bxe5 {[%emt 0:02:27]} Qxe4 {[%emt 0:07:04]} 16. Rxe4 {[%emt 0:00:08]} f6 {[%emt 0:00:11]} 17. Bg3 {[%emt 0:02:43]} Rhe8 {[%emt 0:02:00]} 18. Rae1 {[%emt 0:00:19]} Kd7 {[%emt 0:01:12]} 19. d5 {[%emt 0:04:53]} exd5 {[%emt 0:00:21]} 20. Rxe8 {[%emt 0:00:09]} Rxe8 {[%emt 0:00:03]} 21. Rxe8 {[%emt 0:00:09]} Kxe8 {[%emt 0:00:04]} 22. Bxc7 {[%emt 0:00:18]} Kd7 {[%emt 0:04:20]} 23. Bf4 {[%emt 0:03:57]} d4 {[%emt 0:01:33]} 24. cxd4 {[%emt 0:02:44]} Ke6 {[%emt 0:00:21]} 25. Be3 {[%emt 0:07:27]} Kd5 {[%emt 0:00:38]} 26. Kf1 {[%emt 0:02:10]} Nb4 {[%emt 0:00:26]} 27. a3 {[%emt 0:01:46]} Nc6 {[%emt 0:16:32]} 28. Ke2 {[%emt 0:01:52]} Nxd4+ {[%emt 0:00:05]} 29. Kd3 {[%emt 0:02:12]} Nc6 {[%emt 0:00:04]} 30. Kc3 {[%emt 0:01:19]} b6 {[%emt 0:03:38]} 31. Bf4 {[%emt 0:04:20]} g5 {[%emt 0:02:56]} 32. Bd2 {[%emt 0:04:20]} f5 {[%emt 0:01:17]} 33. h4 {[%emt 0:01:02]} f4 {[%emt 0:00:24]} 34. hxg5 {[%emt 0:06:25]} hxg5 {[%emt 0:00:02]} 35. g3 {[%emt 0:01:11]} Ke4 {[%emt 0:01:32]} 36. gxf4 {[%emt 0:00:14]} gxf4 {[%emt 0:00:01]} 37. Kc4 {[%emt 0:05:12]} (37. a4 $11) 37... a6 {[%emt 0:13:45]} 38. f3+ {[%emt 0:00:44]} Kxf3 {[%emt 0:00:59]} 39. Kd5 {[%emt 0:01:41]} Na5 {[%emt 0:02:42]} 40. b4 {[%emt 0:03:50]} Nb3 {[%emt 0:01:22] [#]} 41. Bxf4 $1 {[%emt 0:30:16]} Kxf4 {[%emt 0:30:51]} 42. Kc6 {[%emt 0:00:07]} b5 {[%emt 0:06:50]} 43. Kb6 {[%emt 0:00:19]} Ke4 {[%emt 0:00:15]} 44. Kxa6 {[%emt 0:00:13]} Nd4 {[%emt 0:00:09]} 45. Ka5 {[%emt 0:00:07]} Kd5 {[%emt 0:00:59]} (45... Kd3 $5 46. a4 $8 bxa4 47. Kxa4 Nf5 $11) 46. a4 {[%emt 0:00:19]} bxa4 $11 {[%emt 0:00:24]} 47. Kxa4 {[%emt 0:00:10]} Kc4 {[%emt 0:00:13]} 48. b5 {[%emt 0:00:11]} Nxb5 {[%emt 0:00:06]} 1/2-1/2

[Event "FIDE Zonal 2.5 Open 2019"]
[Site "Montevideo"]
[Date "2019.04.18"]
[Round "8.14"]
[White "Carvalho, Guillermo"]
[Black "Viera, Emilio"]
[Result "1/2-1/2"]
[ECO "A04"]
[WhiteElo "2194"]
[BlackElo "2138"]
[Annotator "NA"]
[PlyCount "36"]
[EventDate "2019.04.13"]
[EventType "swiss"]
[EventCountry "URU"]
[SourceTitle "playchess.com"]
[Source "ChessBase"]
[SourceQuality "1"]
[TimeControl "40/5400+30:1800+30"]

1. Nf3 {[%emt 0:00:00]} e6 {[%emt 0:00:11]} 2. g3 {[%emt 0:00:00]} f5 {[%emt 0:00:05]} 3. Bg2 {[%emt 0:00:00]} Nf6 {[%emt 0:00:04]} 4. O-O {[%emt 0:00:48]} d5 {[%emt 0:00:17]} 5. c4 {[%emt 0:00:38]} c6 {[%emt 0:01:02]} 6. d3 {[%emt 0:00:51]} dxc4 {[%emt 0:01:25]} 7. dxc4 {[%emt 0:00:16]} Qxd1 {[%emt 0:00:06]} 8. Rxd1 {[%emt 0:00:05]} Nbd7 {[%emt 0:00:05]} 9. Nd4 {[%emt 0:15:44]} Kf7 {[%emt 0:07:57]} 10. Nc3 {[%emt 0:13:30]} Bc5 {[%emt 0:06:23]} 11. Nb3 {[%emt 0:06:18]} Bb6 {[%emt 0:09:26]} 12. Na4 {[%emt 0:03:45]} Bc7 {[%emt 0:04:08]} 13. Bd2 {[%emt 0:03:47]} Nb6 {[%emt 0:11:31]} 14. Nxb6 {[%emt 0:01:29]} axb6 {[%emt 0:00:23]} 15. Bc3 {[%emt 0:11:01]} e5 {[%emt 0:04:09]} 16. e4 {[%emt 0:05:37]} Nxe4 {[%emt 0:18:57]} 17. Bxe4 {[%emt 0:00:07]} fxe4 {[%emt 0:00:02]} 18. Re1 {[%emt 0:00:13]} Bf5 {[%emt 0:02:11]} 1/2-1/2

[Event "FIDE Zonal 2.5 Open 2019"]
[Site "Montevideo"]
[Date "2019.04.18"]
[Round "8.15"]
[White "El Ters, Antouan"]
[Black "Suarez, Pedro"]
[Result "0-1"]
[ECO "C41"]
[WhiteElo "2181"]
[BlackElo "2019"]
[Annotator "NA RC"]
[PlyCount "110"]
[EventDate "2019.04.13"]
[EventType "swiss"]
[EventCountry "URU"]
[SourceTitle "playchess.com"]
[Source "ChessBase"]
[SourceQuality "1"]
[TimeControl "40/5400+30:1800+30"]

1. e4 {[%emt 0:00:00]} d6 {[%emt 0:00:00]} 2. Nf3 {[%emt 0:00:00]} Nf6 {[%emt 0:00:00]} 3. Nc3 {[%emt 0:00:00]} e5 {[%emt 0:00:11]} 4. d4 {[%emt 0:00:39]} Nbd7 {[%emt 0:00:13]} 5. Bc4 {[%emt 0:01:19]} Be7 {[%emt 0:00:14]} 6. dxe5 {[%emt 0:00:43]} dxe5 {[%emt 0:01:06]} 7. Qe2 {[%emt 0:01:42]} O-O {[%emt 0:00:19]} 8. Bg5 {[%emt 0:00:42]} c6 {[%emt 0:03:35]} 9. a4 {[%emt 0:00:39] C41: Philidor Defence} (9. O-O Qc7 10. a4 h6 11. Bd2 Nc5 12. h3 Ne6 13. Be3 Bb4 14. Bd3 Re8 15. Nb1 Nc5 16. Bxc5 Bxc5 {0-1 (36) Nielsen,K (2094)-Semcesen,D (2466) Copenhagen 2015}) 9... h6 $146 {[%emt 0:11:03]} ({Predecessor:} 9... Nh5 10. Be3 Qc7 11. O-O-O a6 12. g4 Nf4 13. Bxf4 exf4 14. e5 Nc5 15. Rdg1 b5 16. Ba2 Be6 17. Bxe6 Nxe6 {½-½ (48) Beutel,H (1913)-Reichstein,H (2096) Bayerisch Eisenstein 2016}) 10. Bd2 {[%emt 0:01:25]} Bc5 {[%emt 0:08:15]} 11. Nd1 {[%emt 0:04:52]} Qe7 {[%emt 0:13:36]} 12. Nh4 {[%emt 0:00:34]} Nb6 {[%emt 0:04:54]} 13. Ng6 {[%emt 0:01:23]} Qc7 {[%emt 0:02:13]} 14. Nxf8 {[%emt 0:01:10]} Nxc4 {[%emt 0:00:13]} 15. Qxc4 {[%emt 0:00:58]} Bxf8 {[%emt 0:00:03]} 16. O-O {[%emt 0:01:22]} Be6 {[%emt 0:01:01]} 17. Qe2 {[%emt 0:00:55]} Rd8 {[%emt 0:03:26]} 18. b3 {[%emt 0:03:01]} Nxe4 {[%emt 0:01:21]} 19. Bxh6 {[%emt 0:11:39]} Bf5 {[%emt 0:04:39]} 20. Be3 {[%emt 0:01:04]} a5 {[%emt 0:09:02]} 21. f3 {[%emt 0:01:05]} Nc5 {[%emt 0:05:05]} 22. Qf2 {[%emt 0:02:26]} b6 {[%emt 0:08:03]} 23. Nc3 {[%emt 0:01:20]} Rb8 {[%emt 0:05:33]} 24. Rad1 {[%emt 0:07:28]} Ne6 {[%emt 0:03:18]} 25. Kh1 {[%emt 0:01:23]} Bg6 {[%emt 0:01:20]} 26. Ne4 {[%emt 0:02:51]} Be7 {[%emt 0:02:02]} 27. Qg3 {[%emt 0:09:09]} b5 {[%emt 0:02:00]} 28. c3 {[%emt 0:04:19]} Bh7 {[%emt 0:03:52]} 29. Rd2 {[%emt 0:12:58]} bxa4 {[%emt 0:02:53]} 30. bxa4 {[%emt 0:00:13]} Bxe4 {[%emt 0:00:28]} 31. fxe4 {[%emt 0:00:17]} Bc5 {[%emt 0:00:36]} 32. h3 {[%emt 0:04:00]} Bxe3 {[%emt 0:02:17]} 33. Qxe3 {[%emt 0:00:10]} Qb6 {[%emt 0:00:37]} 34. Qg3 {[%emt 0:02:45]} Qc7 {[%emt 0:00:57]} 35. Rfd1 {[%emt 0:01:17]} Nc5 {[%emt 0:00:18]} 36. Qg5 {[%emt 0:02:33]} Rf8 {[%emt 0:01:39]} 37. Qe3 {[%emt 0:02:24]} Qe7 {[%emt 0:00:16]} 38. Rd6 {[%emt 0:01:51]} Nxa4 {[%emt 0:01:00]} 39. Rxc6 {[%emt 0:01:26]} Qb7 {[%emt 0:00:09]} 40. Rcd6 {[%emt 0:03:00]} Qc7 {[%emt 0:00:31]} 41. Qd2 {[%emt 0:12:55]} Qxc3 {[%emt 0:00:52]} 42. Qd5 {[%emt 0:04:10]} Qc5 {[%emt 0:01:33]} 43. Ra1 {[%emt 0:01:23]} (43. Rc6 $142 Qb4 44. Ra1) 43... Qxd5 {[%emt 0:04:48]} 44. exd5 {[%emt 0:02:49]} Nc5 {[%emt 0:00:09]} 45. Rc6 {[%emt 0:01:33]} Nb3 {[%emt 0:00:09]} 46. Ra3 $18 {[%emt 0:00:49]} Nd4 {[%emt 0:01:03]} 47. Rc5 {[%emt 0:00:30]} Rd8 48. Rcxa5 {[%emt 0:00:37]} Rd6 {[%emt 0:01:00]} 49. Ra8+ {[%emt 0:01:29]} Kh7 {[%emt 0:00:02]} 50. R3a5 {[%emt 0:00:31]} Nb3 {[%emt 0:00:21]} 51. Rb5 {[%emt 0:01:30]} Nd4 {[%emt 0:00:03]} 52. Rc5 {[%emt 0:00:29]} Nb3 {[%emt 0:00:34]} 53. Rc3 {[%emt 0:00:22]} Nd4 {[%emt 0:00:13]} 54. Ra5 {[%emt 0:00:11]} Kg6 {[%emt 0:00:13]} 55. Kg1 {[%emt 0:01:12]} Ne2+ {[%emt 0:00:01]} 0-1

[Event "FIDE Zonal 2.5 Open 2019"]
[Site "Montevideo"]
[Date "2019.04.18"]
[Round "8.17"]
[White "Kropff, Ricardo"]
[Black "Lanzilotta, Marcelo"]
[Result "1-0"]
[ECO "B30"]
[WhiteElo "2220"]
[BlackElo "1972"]
[Annotator "NA"]
[PlyCount "83"]
[EventDate "2019.04.13"]
[EventType "swiss"]
[EventCountry "URU"]
[SourceTitle "playchess.com"]
[Source "ChessBase"]
[SourceQuality "1"]
[TimeControl "40/5400+30:1800+30"]

1. e4 {[%emt 0:00:00]} c5 {[%emt 0:11:08]} 2. Nf3 {[%emt 0:00:08]} Nc6 {[%emt 0:00:25]} 3. Bb5 {[%emt 0:00:30]} e6 {[%emt 0:01:11]} 4. Bxc6 {[%emt 0:00:59]} bxc6 {[%emt 0:04:52]} 5. d3 {[%emt 0:00:37]} d5 {[%emt 0:00:22]} 6. Qe2 {[%emt 0:02:05]} Ba6 {[%emt 0:01:02] B30: Sicilian: 2...Nc6 3 Bb5, lines without ...g6} (6... Ne7 7. O-O Ng6 8. c4 Bd6 9. e5 Bc7 10. Nc3 O-O 11. Bg5 f6 12. exf6 gxf6 13. Bh6 Re8 14. Na4 {0-1 (42) Shyam,S (2484)-Kuzubov,Y (2701) Al Ain 2014}) 7. c4 {[%emt 0:00:34]} Ne7 {[%emt 0:08:26]} 8. e5 $146 {[%emt 0:01:21]} ({Predecessor:} 8. Nc3 d4 9. Nb1 Ng6 10. e5 Qc7 11. h4 h5 12. Bg5 Be7 13. Bxe7 Nxe7 14. Nbd2 {1-0 (53) Mueller,C (2085)-Heide,G Schwanstetten 1994}) 8... Nf5 {[%emt 0:01:18]} 9. O-O {[%emt 0:01:53]} Rb8 {[%emt 0:00:28]} 10. b3 {[%emt 0:03:54]} Be7 {[%emt 0:00:42]} 11. Nc3 {[%emt 0:02:31]} O-O {[%emt 0:01:31]} 12. Ba3 {[%emt 0:01:42]} Qa5 {[%emt 0:00:49]} 13. Na4 {[%emt 0:00:33]} Rfe8 {[%emt 0:02:21]} 14. Qe1 {[%emt 0:07:10]} Qxe1 {[%emt 0:01:49]} 15. Rfxe1 {[%emt 0:00:49]} Nd4 {[%emt 0:00:09]} 16. Rac1 {[%emt 0:01:41]} Bc8 {[%emt 0:18:32]} 17. Bxc5 {[%emt 0:01:28]} Nxf3+ {[%emt 0:00:04]} 18. gxf3 {[%emt 0:00:05]} f6 {[%emt 0:03:52]} 19. Bxa7 {[%emt 0:02:41]} Ra8 {[%emt 0:00:21]} 20. Bd4 {[%emt 0:01:03]} fxe5 {[%emt 0:06:19]} 21. Bxe5 {[%emt 0:01:04]} Rf8 {[%emt 0:00:08]} 22. Kg2 {[%emt 0:04:23]} Bb7 {[%emt 0:06:04]} 23. cxd5 {[%emt 0:02:04]} c5 {[%emt 0:01:26]} 24. d6 {[%emt 0:04:45]} Bd8 {[%emt 0:08:30]} 25. Nxc5 {[%emt 0:01:53]} Bxf3+ {[%emt 0:00:02]} 26. Kg1 {[%emt 0:00:58]} Bd5 {[%emt 0:07:31]} 27. Rc2 {[%emt 0:02:58]} Rf5 {[%emt 0:00:52]} 28. Bg3 {[%emt 0:03:22]} Bf6 {[%emt 0:06:56]} 29. Nxe6 {[%emt 0:06:10]} Re8 {[%emt 0:03:45]} 30. Rce2 {[%emt 0:02:45]} h5 {[%emt 0:02:12]} (30... Bxe6 $142 31. Rxe6 Rxe6 32. Rxe6 Kf7) 31. d7 {[%emt 0:02:46]} Rxe6 {[%emt 0:00:02]} 32. Rxe6 {[%emt 0:00:09]} Bxe6 {[%emt 0:00:08]} 33. Rxe6 {[%emt 0:00:10]} Rd5 {[%emt 0:00:09]} 34. Rd6 {[%emt 0:04:25]} Rxd6 {[%emt 0:00:04]} 35. Bxd6 {[%emt 0:00:07]} Bd8 {[%emt 0:00:05]} 36. d4 {[%emt 0:00:24]} Kf7 {[%emt 0:00:02]} 37. d5 {[%emt 0:00:20]} g5 {[%emt 0:02:49]} 38. h3 {[%emt 0:00:55]} g4 {[%emt 0:00:09]} 39. hxg4 {[%emt 0:00:04]} hxg4 {[%emt 0:00:10]} 40. Kg2 {[%emt 0:00:04]} Kg6 {[%emt 0:00:01]} 41. f3 {[%emt 0:30:52]} Kf5 {[%emt 0:30:10]} 42. b4 1-0

[Event "FIDE Zonal 2.5 Open 2019"]
[Site "Montevideo"]
[Date "2019.04.18"]
[Round "8.18"]
[White "Belmes, Martin"]
[Black "Curia, Santiago Jose"]
[Result "1-0"]
[ECO "C48"]
[WhiteElo "2081"]
[BlackElo "1989"]
[Annotator "NA"]
[PlyCount "55"]
[EventDate "2019.04.13"]
[EventType "swiss"]
[EventCountry "URU"]
[SourceTitle "playchess.com"]
[Source "ChessBase"]
[SourceQuality "1"]
[TimeControl "40/5400+30:1800+30"]

1. e4 {[%emt 0:00:28]} e5 {[%emt 0:01:35]} 2. Nf3 {[%emt 0:00:08]} Nf6 {[%emt 0:00:04]} 3. Nc3 {[%emt 0:01:04]} Nc6 {[%emt 0:00:11]} 4. Bb5 {[%emt 0:00:09]} Bc5 {[%emt 0:03:08]} 5. O-O {[%emt 0:00:16]} d6 {[%emt 0:02:49]} 6. h3 {[%emt 0:01:24]} Bd7 {[%emt 0:14:57]} 7. a3 {[%emt 0:03:04]} h6 {[%emt 0:08:56]} 8. d3 {[%emt 0:00:28]} g5 {[%emt 0:00:37]} 9. Nh2 {[%emt 0:05:00]} g4 {[%emt 0:06:29]} 10. hxg4 {[%emt 0:01:03]} Rg8 {[%emt 0:00:04]} 11. Nd5 {[%emt 0:12:56]} Nxg4 {[%emt 0:02:50]} 12. Qf3 {[%emt 0:00:51]} Nxh2 {[%emt 0:22:39]} 13. Nf6+ {[%emt 0:00:43]} Kf8 {[%emt 0:00:48]} 14. Kxh2 {[%emt 0:36:03]} Rg6 {[%emt 0:00:17]} 15. Nxd7+ {[%emt 0:00:04]} Qxd7 {[%emt 0:00:06]} 16. Bxc6 {[%emt 0:00:36]} Qxc6 {[%emt 0:00:39]} 17. c3 {[%emt 0:00:00]} Ke7 {[%emt 0:01:45]} 18. Be3 {[%emt 0:00:13]} Qb6 {[%emt 0:00:07]} 19. b4 {[%emt 0:00:26]} Bxe3 {[%emt 0:00:18]} 20. fxe3 {[%emt 0:00:03]} f6 {[%emt 0:00:14]} 21. Rad1 {[%emt 0:00:28]} Rag8 {[%emt 0:00:08]} 22. Rf2 {[%emt 0:01:30]} Qc6 {[%emt 0:00:09]} 23. d4 {[%emt 0:00:18]} Qa6 {[%emt 0:01:47]} 24. dxe5 {[%emt 0:01:11]} dxe5 {[%emt 0:07:03]} 25. Qf5 {[%emt 0:00:29]} Qxa3 {[%emt 0:00:05]} 26. Rd5 {[%emt 0:00:05]} Qa4 {[%emt 0:00:25]} 27. Rfd2 {[%emt 0:00:15]} Qc6 {[%emt 0:01:39]} 28. Rd8 {[%emt 0:00:32] Kf8 [%clk 0:24:06] R2d7# [%clk 0:34:34] Kg7 [%clk 0:24:34] Qxg6+ [%clk 0:34:44] Kh8} 1-0

[Event "FIDE Zonal 2.5 Open 2019"]
[Site "Montevideo"]
[Date "2019.04.18"]
[Round "8.19"]
[White "Moccero, Eduardo"]
[Black "Vazquez, Facundo"]
[Result "0-1"]
[ECO "C01"]
[WhiteElo "1939"]
[BlackElo "2009"]
[Annotator "NA"]
[PlyCount "114"]
[EventDate "2019.04.13"]
[EventType "swiss"]
[EventCountry "URU"]
[SourceTitle "playchess.com"]
[Source "ChessBase"]
[SourceQuality "1"]
[TimeControl "40/5400+30:1800+30"]

1. e4 {[%emt 0:00:00]} e6 {[%emt 0:00:08]} 2. d4 {[%emt 0:00:00]} d5 {[%emt 0:00:06]} 3. exd5 {[%emt 0:00:00]} exd5 {[%emt 0:00:07]} 4. c4 {[%emt 0:00:00]} Nf6 {[%emt 0:00:50]} 5. Nc3 {[%emt 0:00:14]} Bd6 {[%emt 0:00:54]} 6. Nf3 {[%emt 0:01:11]} dxc4 {[%emt 0:00:34]} 7. Bxc4 {[%emt 0:00:39]} O-O {[%emt 0:00:17]} 8. O-O {[%emt 0:00:30]} Nc6 {[%emt 0:00:57]} 9. h3 {[%emt 0:02:19]} h6 {[%emt 0:02:16]} 10. Be3 {[%emt 0:06:47] D20: Queen's Gambit Accepted: 3 e3 and 3 e4} (10. Re1 Bf5 11. a3 Re8 12. Rxe8+ Qxe8 13. Nb5 Qd7 14. Nxd6 Qxd6 15. Qb3 Be6 16. Bxe6 fxe6 17. Bf4 Qd5 18. Qxb7 Nxd4 19. Qxd5 Nxd5 20. Nxd4 Nxf4 {½-½ (59) Zvjaginsev,V (2673)-Popov,I (2596) Moscow 2016}) 10... Bf5 {[%emt 0:02:01]} 11. Rc1 {[%emt 0:03:43]} a6 {[%emt 0:03:03]} 12. d5 $146 {[%emt 0:08:00]} ({Predecessor:} 12. Re1 Qd7 13. a3 Rae8 14. d5 Ne5 15. Be2 Bxh3 16. Nxe5 Bxe5 17. Bd4 Bxd4 18. Qxd4 {0-1 (33) Minko,V (2370)-Lintchevski,D (2516) St Petersburg 2018}) 12... Ne7 {[%emt 0:06:20]} 13. a4 {[%emt 0:03:34]} Bh7 {[%emt 0:04:29]} 14. Qd2 {[%emt 0:05:31]} Bb4 {[%emt 0:06:31]} 15. Rfd1 {[%emt 0:02:19]} Nf5 16. Bb3 {[%emt 0:09:16]} Ne4 {[%emt 0:07:01]} 17. Qe2 {[%emt 0:02:04]} Nxe3 {[%emt 0:00:22]} 18. fxe3 {[%emt 0:01:08]} Ng3 {[%emt 0:02:21]} 19. Qc4 {[%emt 0:02:13]} Qe7 {[%emt 0:03:14]} 20. Re1 {[%emt 0:03:34]} Bc5 {[%emt 0:04:34]} 21. Nd1 {[%emt 0:00:57]} b6 {[%emt 0:00:31]} 22. Bc2 {[%emt 0:01:38]} Be4 {[%emt 0:04:47]} 23. Bxe4 {[%emt 0:01:02]} Nxe4 {[%emt 0:00:06]} 24. Nd4 {[%emt 0:05:47]} Rfe8 {[%emt 0:03:49]} 25. Qd3 {[%emt 0:02:04]} Qd6 {[%emt 0:05:22]} 26. Nf5 {[%emt 0:01:36]} Qg6 {[%emt 0:04:58]} 27. Rf1 {[%emt 0:02:02]} Rad8 {[%emt 0:07:12]} 28. b4 {[%emt 0:00:56]} Bd6 {[%emt 0:01:15]} 29. Rc4 {[%emt 0:02:48]} Ng5 30. e4 b5 {[%emt 0:02:20]} 31. axb5 {[%emt 0:01:54]} axb5 {[%emt 0:00:01]} 32. Rc6 {[%emt 0:04:40]} Nxe4 {[%emt 0:01:57]} 33. Nxd6 {[%emt 0:00:29]} cxd6 {[%emt 0:00:38]} 34. Nc3 {[%emt 0:06:42]} Nxc3 {[%emt 0:01:35]} 35. Qxc3 {[%emt 0:00:32]} Re2 {[%emt 0:01:24]} 36. Qf3 {[%emt 0:00:45]} Rb2 {[%emt 0:00:15]} 37. Rc7 {[%emt 0:00:46]} Rf8 {[%emt 0:00:21]} 38. Rb7 {[%emt 0:02:20]} Rxb4 {[%emt 0:01:08]} 39. Qe2 {[%emt 0:00:56]} Rb3 {[%emt 0:01:55]} 40. Rbxf7 {[%emt 0:00:30]} Rxf7 {[%emt 0:02:16]} 41. Qe8+ {[%emt 0:30:39]} Kh7 {[%emt 0:30:18]} 42. Rxf7 {[%emt 0:00:51]} Rxh3 $2 {[%emt 0:01:35]} (42... Rb1+ {mates} 43. Kh2 Rb2 44. Rxg7+ Qxg7 45. Qe4+ Kh8 46. h4 Qe5+ 47. Qxe5+ dxe5 48. Kh3 b4 49. Kg4 b3 50. Kf5 Rd2 51. g4 b2 52. g5 b1=Q+ 53. Kf6 Qb6+ 54. Kxe5 Re2+ 55. Kf5 h5 56. g6 Kg7 57. d6 Qxd6 58. Kg5 Qe5#) 43. Qxb5 {[%emt 0:02:18]} Rh5 {[%emt 0:04:46]} 44. Rf3 {[%emt 0:06:02]} Qe4 {[%emt 0:04:15]} 45. Qd3 {[%emt 0:04:00]} Qxd3 {[%emt 0:02:16]} 46. Rxd3 {[%emt 0:00:10]} Rf5 {[%emt 0:00:36]} 47. Kh2 {[%emt 0:00:23]} Kg6 {[%emt 0:00:27]} 48. Kg3 {[%emt 0:00:06]} Kf6 {[%emt 0:00:23]} 49. Kg4 {[%emt 0:02:11]} g6 {[%emt 0:00:27]} 50. Rd1 {[%emt 0:01:12]} Ke5 {[%emt 0:01:51]} 51. g3 {[%emt 0:00:10]} Ke4 {[%emt 0:01:54]} 52. Rd2 {[%emt 0:02:09]} h5+ {[%emt 0:05:37]} 53. Kh4 {[%emt 0:00:18]} Rxd5 {[%emt 0:00:41]} 54. Re2+ {[%emt 0:02:56]} Kf3 {[%emt 0:01:20]} 55. Re6 {[%emt 0:01:35]} g5+ {[%emt 0:01:59]} 56. Kxh5 {[%emt 0:00:14]} Kxg3 $19 {[%emt 0:00:07]} 57. Rf6 {[%emt 0:01:14]} g4+ {[%emt 0:00:54]} 0-1

[Event "FIDE Zonal 2.5 Open 2019"]
[Site "Montevideo"]
[Date "2019.04.18"]
[Round "8.20"]
[White "Rodriguez Farias, Eduardo"]
[Black "Gaye, Gustavo"]
[Result "1-0"]
[ECO "B06"]
[WhiteElo "1898"]
[BlackElo "2000"]
[Annotator "NA"]
[PlyCount "69"]
[EventDate "2019.04.13"]
[EventType "swiss"]
[EventCountry "URU"]
[SourceTitle "playchess.com"]
[Source "ChessBase"]
[SourceQuality "1"]
[TimeControl "40/5400+30:1800+30"]

1. e4 {[%emt 0:00:00]} g6 {[%emt 0:00:30]} 2. d4 {[%emt 0:00:04]} Bg7 {[%emt 0:00:04]} 3. Nf3 {[%emt 0:02:53]} c5 {[%emt 0:00:26]} 4. c3 {[%emt 0:01:29]} cxd4 {[%emt 0:00:35]} 5. cxd4 {[%emt 0:00:24]} d5 {[%emt 0:00:12]} 6. e5 {[%emt 0:01:22]} f6 {[%emt 0:00:28] B27: Sicilian: 2 Nf3, unusual Black 2nd moves} (6... Nh6 7. Nc3 O-O 8. h3 f6 9. exf6 Rxf6 10. Bg5 Rf8 11. Bb5 Nf5 12. O-O Nc6 13. Bxc6 bxc6 14. Qd2 {1-0 (31) Vachier Lagrave,M (2780)-Sebenik,M (2540) chess.com INT 2019}) 7. Bb5+ {[%emt 0:00:31]} Nc6 {[%emt 0:00:06]} 8. h3 {[%emt 0:00:49]} e6 $146 {[%emt 0:05:30]} ({Predecessor:} 8... Nh6 9. O-O O-O 10. Nc3 Nf7 11. exf6 exf6 12. Re1 g5 13. b3 Qa5 14. Bd2 g4 15. hxg4 Bxg4 16. Be2 Rad8 17. Nh4 Bxe2 18. Nxe2 Qc7 19. Nf4 Ng5 20. Nf5 Qd7 21. Qg4 Nxd4 22. Ne7+ Kh8 23. Qh5 {1-0 (23) Stefansson,H (2530)-Manik,M (2407) Pardubice 2017}) 9. O-O {[%emt 0:02:07]} Nge7 {[%emt 0:01:19]} 10. exf6 {[%emt 0:06:43]} Bxf6 {[%emt 0:00:35]} 11. Bxc6+ {[%emt 0:00:04]} Nxc6 {[%emt 0:17:26]} 12. Bh6 {[%emt 0:01:37]} Qb6 {[%emt 0:03:42]} 13. Nc3 {[%emt 0:09:42]} Bd7 {[%emt 0:26:26]} 14. Na4 {[%emt 0:06:47]} Qd8 {[%emt 0:06:43]} 15. Re1 {[%emt 0:00:58]} Kf7 {[%emt 0:03:01]} 16. Nc5 {[%emt 0:09:56]} b6 {[%emt 0:02:47]} 17. Nd3 {[%emt 0:00:21]} Re8 {[%emt 0:00:51]} 18. Rc1 {[%emt 0:10:36]} Rc8 {[%emt 0:02:39]} 19. Nfe5+ {[%emt 0:05:49]} Kg8 {[%emt 0:05:34]} 20. Qg4 {[%emt 0:01:02]} Nxe5 {[%emt 0:00:52]} 21. dxe5 {[%emt 0:04:33]} Rxc1 {[%emt 0:01:53]} 22. Rxc1 {[%emt 0:00:18]} Bg7 {[%emt 0:00:22]} 23. Bg5 {[%emt 0:01:01]} Qb8 {[%emt 0:01:02]} 24. f4 {[%emt 0:03:01]} Rc8 {[%emt 0:01:19]} 25. Rf1 {[%emt 0:04:01]} Rc4 {[%emt 0:03:38]} 26. Bf6 {[%emt 0:02:47]} Qf8 {[%emt 0:01:45]} 27. Qg5 {[%emt 0:03:57]} Bb5 {[%emt 0:03:49]} 28. Rf3 {[%emt 0:02:04]} Rc2 {[%emt 0:02:06]} 29. f5 {[%emt 0:14:15]} (29. Bxg7 $11 Qxg7 30. Nf2) 29... exf5 {[%emt 0:04:28]} (29... Bh6 $15 30. Qh4 exf5) 30. Bxg7 {[%emt 0:01:44]} Kxg7 {[%emt 0:02:17]} 31. Nf4 {[%emt 0:00:14]} Rc6 {[%emt 0:01:24]} 32. e6 {[%emt 0:02:26]} Rc7 {[%emt 0:00:42]} 33. Re3 $14 {[%emt 0:01:00]} Qc5 {[%emt 0:01:04]} 34. Nh5+ {[%emt 0:01:27]} Kg8 {[%emt 0:00:07]} 35. Qd8+ {[%emt 0:00:21]} 1-0